fUSD/lending_fUSD_20250916
["ID","MTS","AMOUNT","RATE_DAILY","PERIOD"]
[385719885,1757989844466,-1635.96,0.00032082,2]
[385719886,1757989844475,-804.21,0.00032082,2]
[385719887,1757989844485,-800.85,0.00032082,2]
[385719888,1757989844495,-482.87,0.00032082,2]
[385719889,1757989844504,-804.21,0.00032082,2]
[385719890,1757989844513,-500.0,0.00032156,7]
[385719891,1757989844523,-278.0,0.00032166,2]
[385719892,1757989844532,-1094.0,0.00032205,2]
[385719893,1757989844541,-152.0,0.00032223,3]
[385719894,1757989844550,-500.0,0.00032254,7]
[385719895,1757989844559,-1000.0,0.00032338,5]
[385719896,1757989844568,-500.0,0.00032386,7]
[385719897,1757989844577,-1094.0,0.00032479,2]
[385719898,1757989844587,-8790.373,0.000325,7]
[385719899,1757989844596,-8790.372,0.000325,7]
[385719900,1757989844606,-8790.372,0.000325,7]
[385719901,1757989844615,-8790.373,0.000325,7]
[385719902,1757989844625,-8790.373,0.000325,7]
[385719903,1757989844634,-500.0,0.00032629,7]
[385719904,1757989844644,-190.89,0.00032635,2]
[385719905,1757989844653,-4409.79333942,0.00032638,2]
[385719906,1757989844663,-500.0,0.00032663,7]
[385719907,1757989844671,-500.0,0.0003267,7]
[385719908,1757989844681,-500.0,0.00032696,7]
[385719909,1757989844691,-790.0854044,0.00032705,2]
[385719910,1757989844700,-4463.96621315,0.00032709,2]
[385719911,1757989844710,-500.0,0.0003271,7]
[385719912,1757989844719,-279.0,0.0003275,2]
[385719913,1757989844729,-1094.0,0.00032753,2]
[385719914,1757989844739,-153.25,0.00032767,2]
[385719915,1757989844748,-421.35,0.00032767,2]
[385719916,1757989844758,-150.1,0.00032767,2]
[385719917,1757989844767,-302.1,0.00032767,2]
[385719918,1757989844777,-150.0,0.00032767,2]
[385719919,1757989844786,-410.99,0.00032767,2]
[385719920,1757989844795,-150.0,0.00032767,2]
[385719921,1757989844805,-821.98,0.00032767,2]
[385719922,1757989844814,-337.42,0.00032767,2]
[385719923,1757989844824,-1192.01,0.00032767,2]
[385719924,1757989844833,-1192.01,0.00032767,2]
[385719925,1757989844843,-1192.33,0.00032767,2]
[385719926,1757989844853,-5961.7097862,0.00032795,2]
[385719927,1757989844862,-278.0,0.00032801,2]
[385719928,1757989844871,-500.0,0.00032824,7]
[385719929,1757989844880,-4000.0,0.00032857,4]
[385719930,1757989844890,-431.38721135,0.00032873,2]
[385719931,1757989844903,-1163.53,0.00032876,120]
[385719932,1757989844913,-800.0,0.00032876,60]
[385719933,1757989844922,-500.0,0.00032886,7]
[385719934,1757989844931,-20000.0,0.000329,5]
[385719935,1757989844940,-2400.0,0.000329,12]
[385719936,1757989844950,-150.0,0.0003292,7]
[385719937,1757989844959,-920.25008,0.0003299,2]
[385719938,1757989844968,-30000.0,0.00032998,30]
[385719939,1757989844978,-1000.0,0.00033001,2]
[385719940,1757989844987,-1094.0,0.00033027,2]
[385719941,1757989844996,-150.0,0.0003304,2]
[385719942,1757989845006,-406.70530285,0.0003304,3]
[385719943,1757989845015,-279.0,0.00033111,2]
[385719944,1757989845024,-277.35679052,0.00033127,2]
[385719945,1757989845033,-204.33421353,0.00033127,2]
[385719946,1757989845042,-695.39793187,0.00033128,2]
[385719947,1757989845051,-500.0,0.00033134,7]
[385719948,1757989845060,-800.0,0.0003315,60]
[385719949,1757989845070,-500.0,0.00033154,7]
[385719950,1757989845079,-1250.0,0.0003316,5]
[385719951,1757989845088,-1000.0,0.00033189,2]
[385719952,1757989845097,-1000.0,0.00033214,2]
[385719953,1757989845107,-150.0,0.00033216,7]
[385719954,1757989845116,-270.0,0.00033226,30]
[385719955,1757989845125,-165.0,0.00033226,30]
[385719956,1757989845133,-500.0,0.00033256,7]
[385719957,1757989845142,-160.0,0.00033284,2]
[385719958,1757989845151,-160.0,0.00033288,2]
[385719959,1757989845160,-981.0,0.000333,2]
[385719960,1757989845169,-1100.76158562,0.00033301,2]
[385719961,1757989845178,-500.0,0.00033345,7]
[385719962,1757989845187,-800.0,0.00033424,60]
[385719963,1757989845196,-3061.0,0.00033425,2]
[385719964,1757989845205,-500.0,0.00033433,7]
[385719965,1757989845214,-1000.0,0.00033459,2]
[385719966,1757989845223,-509.32116961,0.00033503,7]
[385719967,1757989845232,-500.0,0.0003358,7]
[385719968,1757989845241,-500.0,0.00033583,7]
[385719969,1757989845250,-308.3,0.00033589,2]
[385719970,1757989845259,-300.0,0.00033589,2]
[385719971,1757989845268,-4409.79333942,0.00033597,2]
[385719972,1757989845277,-1000.0,0.000336,2]
[385719973,1757989845286,-500.0,0.00033633,7]
[385719974,1757989845296,-344.0,0.00033639,7]
[385719975,1757989845305,-4463.96621315,0.00033645,2]
[385719976,1757989845315,-517.49888921,0.00033668,7]
[385719977,1757989845326,-800.0,0.00033698,60]
[385719978,1757989845370,-500.0,0.00033745,7]
[385719979,1757989845404,-602.0,0.00033771,2]
[385719980,1757989845425,-1303.0,0.00033771,2]
[385719981,1757989845435,-568.0,0.00033771,2]
[385719982,1757989845445,-1581.0,0.00033771,2]
[385719983,1757989845454,-819.0,0.00033771,2]
[385719984,1757989845464,-898.0,0.00033771,2]
[385719985,1757989845474,-1178.0,0.00033771,2]
[385719986,1757989845484,-4171.0,0.00033771,2]
[385719987,1757989845494,-6177.0,0.00033771,2]
[385719988,1757989845504,-3394.258,0.00033771,2]
[385719989,1757989845515,-2039.0,0.00033771,2]
[385719990,1757989845526,-157.94875848,0.00033789,2]
[385719991,1757989845537,-150.0,0.0003381,7]
[385719992,1757989845549,-150.0,0.0003381,7]
[385719993,1757989845558,-150.0,0.0003381,7]
[385719994,1757989845568,-150.0,0.0003381,7]
[385719995,1757989845578,-150.0,0.0003381,7]
[385719996,1757989845587,-150.0,0.0003381,7]
[385719997,1757989845598,-20000.0,0.000339,7]
[385719998,1757989845607,-800.0,0.00033972,60]
[385719999,1757989845617,-740.85386365,0.00033982,5]
[385720000,1757989845627,-3374.70853366,0.00034,2]
[385720001,1757989845638,-1425.0,0.00034039,2]
[385720002,1757989845648,-5000.0,0.00034045,2]
[385720003,1757989845657,-5000.0,0.00034045,2]
[385720004,1757989845669,-5000.0,0.00034045,2]
[385720005,1757989845680,-5018.42290963,0.00034045,2]
[385720006,1757989845689,-5632.10290765,0.00034045,2]
[385720007,1757989845700,-344.0,0.00034087,2]
[385720008,1757989845711,-1330.2372593,0.00034104,2]
[385720009,1757989845721,-1000.0,0.00034151,2]
[385720010,1757989845730,-1000.0,0.00034174,2]
[385720011,1757989845739,-500.0,0.00034187,7]
[385720012,1757989845749,-800.0,0.00034246,60]
[385720013,1757989845759,-150.0,0.00034247,2]
[385720014,1757989845768,-1425.0,0.00034278,2]
[385720015,1757989845777,-4000.0,0.00034286,4]
[385720016,1757989845787,-500.0,0.00034295,7]
[385720017,1757989845797,-1000.0,0.00034363,2]
[385720018,1757989845806,-150.0,0.00034403,7]
[385720019,1757989845816,-150.0,0.0003441,2]
[385720020,1757989845825,-500.0,0.0003444,7]
[385720022,1757989845836,-500.0,0.00034483,7]
[385720023,1757989845846,-500.0,0.00034483,7]
[385720024,1757989845855,-500.0,0.00034489,7]
[385720025,1757989845865,-287.61899177,0.00034496,2]
[385720026,1757989845875,-157.0,0.000345,120]
[385720027,1757989845884,-800.0,0.0003452,60]
[385720028,1757989845893,-165.0,0.00034521,30]
[385720029,1757989845907,-502.18412489,0.0003453,7]
[385720030,1757989845917,-4409.79333942,0.00034557,2]
[385720031,1757989845927,-4463.96621315,0.0003458,2]
[385720032,1757989845937,-1425.0,0.00034592,2]
[385720033,1757989845946,-500.0,0.00034612,7]
[385720034,1757989845956,-151.30862984,0.0003463,2]
[385720035,1757989845965,-1425.0,0.00034636,2]
[385720036,1757989845975,-1425.0,0.00034658,2]
[385720037,1757989845984,-501.84444138,0.00034697,7]
[385720038,1757989845994,-179.24,0.00034699,120]
[385720039,1757989846004,-150.0,0.00034699,7]
[385720040,1757989846015,-1000.0,0.00034717,2]
[385720041,1757989846024,-544.19512165,0.00034721,7]
[385720042,1757989846034,-500.0,0.00034756,7]
[385720043,1757989846044,-1000.0,0.00034757,2]
[385720044,1757989846142,-504.00350006,0.00034762,2]
[385720045,1757989846151,-1000.0,0.00034772,2]
[385720046,1757989846161,-1163.53,0.00034794,120]
[385720047,1757989846170,-800.0,0.00034794,60]
[385720048,1757989846180,-200.571569,0.000348,10]
[385720049,1757989846191,-4924.46581791,0.0003485,60]
[385720050,1757989846201,-152.0,0.00034852,4]
[385720051,1757989846210,-1425.0,0.00034853,2]
[385720052,1757989846220,-500.0,0.00034892,7]
[385720053,1757989846229,-1000.0,0.00034899,2]
[385720054,1757989846240,-20000.0,0.000349,7]
[385720055,1757989846250,-1425.0,0.00034924,2]
[385720056,1757989846259,-500.0,0.00034942,7]
[385720057,1757989846268,-1425.0,0.00034955,2]
[385720058,1757989846278,-1425.0,0.00034961,2]
[385720059,1757989846287,-1425.0,0.00034973,2]
[385720060,1757989846297,-1425.0,0.00034979,2]
[385720061,1757989846306,-150.0,0.00034983,2]
[385720062,1757989846315,-920.25008,0.0003499,2]
[385720063,1757989846324,-500.0,0.00035,120]
[385720064,1757989846333,-500.0,0.00035,120]
[385720065,1757989846343,-9700.0,0.00035,7]
[385720067,1757989846352,-43576.77135455,0.00035,7]
[385720069,1757989846361,-2323.27467033,0.00035,120]
[385720070,1757989846371,-2004.46,0.00035,7]
[385720071,1757989846380,-1000.0,0.00035,30]
[385720072,1757989846389,-300.0,0.00035,10]
[385720073,1757989846400,-154.96468841,0.00035041,30]
[385720074,1757989846409,-1425.0,0.00035046,2]
[385720075,1757989846419,-152.07500255,0.00035048,2]
[385720076,1757989846429,-651.87026214,0.00035066,2]
[385720077,1757989846438,-800.0,0.00035068,60]
[385720078,1757989846447,-200.0,0.00035072,2]
[385720079,1757989846457,-167.0,0.00035072,2]
[385720080,1757989846466,-200.0,0.00035072,2]
[385720081,1757989846475,-200.0,0.00035072,2]
[385720083,1757989846484,-200.0,0.00035072,2]
[385720085,1757989846494,-200.0,0.00035072,2]
[385720087,1757989846502,-200.0,0.00035072,2]
[385720089,1757989846512,-349.0,0.00035072,2]
[385720091,1757989846521,-150.0,0.00035087,2]
[385720093,1757989846530,-500.0,0.00035118,7]
[385720095,1757989846539,-150.0,0.00035121,2]
[385720097,1757989846549,-500.0,0.00035178,7]
[385720099,1757989846558,-500.0,0.00035205,30]
[385720101,1757989846567,-500.0,0.00035205,30]
[385720103,1757989846576,-228.06778029,0.00035205,30]
[385720105,1757989846585,-150.0,0.00035213,2]
[385720107,1757989846594,-500.0,0.00035214,7]
[385720109,1757989846604,-154.96468841,0.00035288,30]
[385720111,1757989846615,-237.69938356,0.00035328,7]
[385720113,1757989846624,-154.0,0.00035328,7]
[385720115,1757989846633,-154.0,0.00035328,7]
[385720117,1757989846643,-152.8277897,0.00035328,7]
[385720119,1757989846652,-151.0,0.00035328,7]
[385720121,1757989846662,-548.0,0.00035328,7]
[385720123,1757989846671,-151.0,0.00035328,7]
[385720125,1757989846680,-548.0,0.00035328,7]
[385720127,1757989846690,-151.0,0.00035328,7]
[385720129,1757989846699,-548.0,0.00035328,7]
[385720131,1757989846709,-151.0,0.00035328,7]
[385720133,1757989846718,-548.0,0.00035328,7]
[385720135,1757989846728,-151.0,0.00035328,7]
[385720137,1757989846737,-548.0,0.00035328,7]
[385720139,1757989846746,-151.0,0.00035328,7]
[385720141,1757989846755,-152.0,0.00035328,7]
[385720143,1757989846764,-548.0,0.00035328,7]
[385720145,1757989846773,-160.85688929,0.00035328,7]
[385720147,1757989846783,-152.0,0.00035328,7]
[385720149,1757989846791,-548.0,0.00035328,7]
[385720151,1757989846800,-164.69111625,0.00035328,7]
[385720153,1757989846810,-152.0,0.00035328,7]
[385720155,1757989846819,-554.00746009,0.00035328,7]
[385720157,1757989846828,-152.0,0.00035328,7]
[385720159,1757989846837,-152.0,0.00035328,7]
[385720161,1757989846846,-152.0,0.00035328,7]
[385720163,1757989846855,-152.0,0.00035328,7]
[385720165,1757989846865,-152.0,0.00035328,7]
[385720167,1757989846874,-152.0,0.00035328,7]
[385720169,1757989846883,-152.0,0.00035328,7]
[385720171,1757989846892,-152.0,0.00035328,7]
[385720173,1757989846911,-152.0,0.00035328,7]
[385720175,1757989846921,-152.0,0.00035328,7]
[385720177,1757989846930,-152.0,0.00035328,7]
[385720179,1757989846940,-288.59400066,0.00035328,7]
[385720181,1757989846949,-155.19377924,0.00035328,7]
[385720183,1757989846960,-152.0,0.00035328,7]
[385720185,1757989846969,-152.0,0.00035328,7]
[385720187,1757989846978,-152.0,0.00035328,7]
[385720189,1757989846988,-152.0,0.00035328,7]
[385720191,1757989846998,-152.0,0.00035328,7]
[385720194,1757989847008,-152.0,0.00035328,7]
[385720195,1757989847017,-152.0,0.00035328,7]
[385720197,1757989847026,-152.0,0.00035328,7]
[385720199,1757989847035,-229.34355324,0.00035328,7]
[385720201,1757989847044,-151.0,0.00035328,7]
[385720203,1757989847053,-156.0221501,0.00035328,7]
[385720205,1757989847062,-200.0,0.0003533,10]
[385720207,1757989847072,-200.0,0.00035331,10]
[385720209,1757989847081,-800.0,0.00035342,60]
[385720211,1757989847090,-153.0,0.00035342,2]
[385720213,1757989847099,-153.0,0.00035342,2]
[385720215,1757989847108,-153.0,0.00035342,2]
[385720217,1757989847120,-153.0,0.00035342,2]
[385720219,1757989847129,-153.0,0.00035342,2]
[385720221,1757989847139,-153.0,0.00035342,2]
[385720223,1757989847147,-153.0,0.00035342,2]
[385720225,1757989847156,-153.0,0.00035342,2]
[385720227,1757989847165,-153.0,0.00035342,2]
[385720229,1757989847174,-153.0,0.00035342,2]
[385720231,1757989847183,-153.0,0.00035342,2]
[385720233,1757989847192,-153.0,0.00035342,2]
[385720235,1757989847201,-153.0,0.00035342,2]
[385720237,1757989847210,-153.0,0.00035342,2]
[385720239,1757989847219,-153.0,0.00035342,2]
[385720241,1757989847233,-153.0,0.00035342,2]
[385720244,1757989847242,-153.0,0.00035342,2]
[385720245,1757989847251,-153.0,0.00035342,2]
[385720247,1757989847261,-153.0,0.00035342,2]
[385720250,1757989847270,-153.0,0.00035342,2]
[385720251,1757989847279,-153.0,0.00035342,2]
[385720253,1757989847287,-153.0,0.00035342,2]
[385720255,1757989847297,-153.0,0.00035342,2]
[385720257,1757989847306,-153.0,0.00035342,2]
[385720259,1757989847315,-153.0,0.00035342,2]
[385720261,1757989847324,-153.0,0.00035342,2]
[385720263,1757989847333,-153.0,0.00035342,2]
[385720265,1757989847342,-153.0,0.00035342,2]
[385720267,1757989847351,-153.0,0.00035342,2]
[385720269,1757989847360,-153.0,0.00035342,2]
[385720271,1757989847369,-153.0,0.00035342,2]
[385720273,1757989847378,-153.0,0.00035342,2]
[385720275,1757989847387,-153.0,0.00035342,2]
[385720277,1757989847396,-153.0,0.00035342,2]
[385720279,1757989847404,-153.0,0.00035342,2]
[385720281,1757989847414,-153.0,0.00035342,2]
[385720283,1757989847423,-153.0,0.00035342,2]
[385720285,1757989847432,-153.0,0.00035342,2]
[385720287,1757989847441,-153.0,0.00035342,2]
[385720289,1757989847450,-153.0,0.00035342,2]
[385720291,1757989847459,-153.0,0.00035342,2]
[385720293,1757989847468,-153.0,0.00035342,2]
[385720295,1757989847478,-153.0,0.00035342,2]
[385720297,1757989847487,-153.0,0.00035342,2]
[385720299,1757989847496,-153.0,0.00035342,2]
[385720301,1757989847506,-153.0,0.00035342,2]
[385720303,1757989847515,-153.0,0.00035342,2]
[385720305,1757989847524,-153.0,0.00035342,2]
[385720307,1757989847534,-153.0,0.00035342,2]
[385720309,1757989847545,-153.0,0.00035342,2]
[385720311,1757989847554,-153.0,0.00035342,2]
[385720313,1757989847563,-1000.0,0.00035397,2]
[385720315,1757989847572,-1425.0,0.00035416,2]
[385720317,1757989847581,-1425.0,0.00035423,2]
[385720319,1757989847590,-1000.0,0.00035432,2]
[385720321,1757989847599,-268.0,0.00035441,30]
[385720323,1757989847609,-9999.99,0.00035455,2]
[385720325,1757989847619,-17112.73,0.00035455,2]
[385720327,1757989847628,-999.99,0.00035455,2]
[385720329,1757989847637,-9999.99,0.00035455,2]
[385720331,1757989847647,-3273.1,0.00035455,90]
[385720333,1757989847656,-1684.97,0.00035455,2]
[385720335,1757989847666,-150.99,0.00035455,2]
[385720337,1757989847675,-150.0,0.00035459,2]
[385720339,1757989847685,-500.0,0.00035478,7]
[385720340,1757989847695,-509.6682264,0.00035479,30]
[385720341,1757989847704,-1425.0,0.00035485,2]
[385720342,1757989847713,-1999.99,0.000355,2]
[385720343,1757989847722,-2000.0,0.000355,2]
[385720344,1757989847732,-2000.0,0.000355,2]
[385720345,1757989847743,-2004.59,0.000355,2]
[385720346,1757989847752,-1000.0,0.00035514,2]
[385720347,1757989847761,-304.86518651,0.00035516,2]
[385720348,1757989847771,-4463.96621315,0.00035516,2]
[385720349,1757989847781,-172.61682383,0.00035516,2]
[385720350,1757989847791,-4409.79333942,0.00035516,2]
[385720351,1757989847801,-1645.77868758,0.00035516,2]
[385720352,1757989847810,-157.94875848,0.00035516,2]
[385720353,1757989847820,-168.02993509,0.00035516,7]
[385720354,1757989847829,-500.0,0.00035519,7]
[385720355,1757989847840,-504.79783788,0.00035519,7]
[385720356,1757989847850,-154.96468841,0.00035534,30]
[385720357,1757989847859,-150.0,0.00035547,2]
[385720358,1757989847868,-150.0,0.00035561,2]
[385720359,1757989847878,-1425.0,0.00035569,2]
[385720360,1757989847888,-150.0,0.0003557,2]
[385720361,1757989847898,-341.90470974,0.00035573,2]
[385720362,1757989847912,-150.0,0.00035573,2]
[385720363,1757989847923,-435.76090457,0.00035576,2]
[385720364,1757989847932,-529.6170994,0.00035579,2]
[385720365,1757989847943,-623.47329423,0.00035582,2]
[385720366,1757989847952,-717.32948906,0.00035584,2]
[385720367,1757989847962,-1425.0,0.00035584,2]
[385720368,1757989847971,-811.1856839,0.00035587,2]
[385720369,1757989847982,-500.0,0.00035587,7]
[385720370,1757989847991,-161.97473978,0.00035589,7]
[385720371,1757989848001,-156.56943484,0.00035589,7]
[385720372,1757989848010,-160.48138757,0.00035589,7]
[385720373,1757989848020,-156.2010199,0.00035589,7]
[385720374,1757989848029,-155.96793466,0.00035589,7]
[385720375,1757989848038,-154.41569369,0.00035589,7]
[385720376,1757989848048,-153.99840867,0.00035589,7]
[385720377,1757989848057,-156.65818756,0.00035589,7]
[385720378,1757989848067,-154.05139023,0.00035589,7]
[385720379,1757989848076,-905.04187873,0.0003559,2]
[385720380,1757989848085,-500.0,0.00035592,7]
[385720381,1757989848095,-998.89807356,0.00035593,2]
[385720382,1757989848105,-1092.75426839,0.00035596,2]
[385720383,1757989848114,-444.0,0.00035596,60]
[385720384,1757989848123,-150.0,0.000356,2]
[385720385,1757989848133,-1362.0,0.000356,7]
[385720386,1757989848142,-492.25338217,0.00035606,2]
[385720387,1757989848151,-150.0,0.00035607,2]
[385720388,1757989848161,-194.49,0.00035615,2]
[385720389,1757989848170,-336.02997093,0.00035616,2]
[385720390,1757989848179,-432.09244674,0.00035616,2]
[385720391,1757989848188,-432.09244674,0.00035616,2]
[385720392,1757989848197,-505.15452748,0.00035616,2]
[385720393,1757989848206,-505.15452748,0.00035616,2]
[385720394,1757989848216,-203.62110206,0.00035616,2]
[385720395,1757989848226,-203.62110206,0.00035616,2]
[385720396,1757989848236,-203.62110206,0.00035616,2]
[385720397,1757989848246,-203.62110206,0.00035616,2]
[385720398,1757989848256,-436.97,0.00035616,7]
[385720399,1757989848265,-436.97,0.00035616,7]
[385720400,1757989848274,-436.97,0.00035616,7]
[385720401,1757989848284,-436.97,0.00035616,7]
[385720402,1757989848293,-436.97,0.00035616,7]
[385720403,1757989848302,-436.97,0.00035616,7]
[385720404,1757989848311,-436.97,0.00035616,7]
[385720405,1757989848320,-436.97,0.00035616,7]
[385720406,1757989848329,-436.97,0.00035616,7]
[385720407,1757989848338,-436.97,0.00035616,7]
[385720408,1757989848348,-436.97,0.00035616,7]
[385720409,1757989848358,-436.97,0.00035616,7]
[385720410,1757989848367,-436.97,0.00035616,7]
[385720411,1757989848376,-436.97,0.00035616,7]
[385720412,1757989848386,-436.97,0.00035616,7]
[385720413,1757989848396,-436.97,0.00035616,7]
[385720414,1757989848405,-436.97,0.00035616,7]
[385720415,1757989848414,-436.97,0.00035616,7]
[385720416,1757989848423,-436.97,0.00035616,7]
[385720417,1757989848433,-436.97,0.00035616,7]
[385720418,1757989848442,-436.97,0.00035616,7]
[385720419,1757989848451,-436.97,0.00035616,7]
[385720420,1757989848460,-436.97,0.00035616,7]
[385720421,1757989848470,-437.20042573,0.00035616,7]
[385720422,1757989848479,-168.154749,0.00035616,7]
[385720423,1757989848489,-168.154749,0.00035616,7]
[385720424,1757989848500,-155.690949,0.00035616,7]
[385720425,1757989848509,-155.690949,0.00035616,7]
[385720426,1757989848519,-155.690949,0.00035616,7]
[385720427,1757989848529,-155.690949,0.00035616,7]
[385720428,1757989848538,-155.690949,0.00035616,7]
[385720429,1757989848547,-155.690949,0.00035616,7]
[385720430,1757989848556,-155.690949,0.00035616,7]
[385720431,1757989848565,-155.690949,0.00035616,7]
[385720432,1757989848575,-155.690949,0.00035616,7]
[385720433,1757989848584,-156.588396,0.00035616,7]
[385720434,1757989848593,-156.588396,0.00035616,7]
[385720435,1757989848603,-156.588396,0.00035616,7]
[385720436,1757989848612,-156.588396,0.00035616,7]
[385720437,1757989848622,-156.588396,0.00035616,7]
[385720438,1757989848632,-156.588396,0.00035616,7]
[385720439,1757989848642,-156.588396,0.00035616,7]
[385720440,1757989848651,-156.588396,0.00035616,7]
[385720441,1757989848661,-156.588396,0.00035616,7]
[385720442,1757989848671,-156.588396,0.00035616,7]
[385720443,1757989848680,-154.478397,0.00035616,7]
[385720444,1757989848690,-154.478397,0.00035616,7]
[385720445,1757989848700,-156.588396,0.00035616,7]
[385720446,1757989848709,-154.478397,0.00035616,7]
[385720447,1757989848719,-156.588396,0.00035616,7]
[385720448,1757989848729,-154.478397,0.00035616,7]
[385720449,1757989848738,-156.588396,0.00035616,7]
[385720450,1757989848752,-154.478397,0.00035616,7]
[385720451,1757989848762,-154.478397,0.00035616,7]
[385720452,1757989848771,-154.478397,0.00035616,7]
[385720453,1757989848781,-154.478397,0.00035616,7]
[385720454,1757989848790,-154.478397,0.00035616,7]
[385720455,1757989848799,-154.478397,0.00035616,7]
[385720456,1757989848808,-154.478397,0.00035616,7]
[385720457,1757989848818,-154.478397,0.00035616,7]
[385720458,1757989848828,-154.478397,0.00035616,7]
[385720459,1757989848837,-154.478397,0.00035616,7]
[385720460,1757989848847,-154.478397,0.00035616,7]
[385720461,1757989848856,-154.478397,0.00035616,7]
[385720462,1757989848865,-154.478397,0.00035616,7]
[385720463,1757989848875,-154.478397,0.00035616,7]
[385720464,1757989848884,-154.478397,0.00035616,7]
[385720465,1757989848894,-154.478397,0.00035616,7]
[385720466,1757989848907,-400.0,0.00035616,7]
[385720467,1757989848917,-400.0,0.00035616,7]
[385720468,1757989848928,-400.0,0.00035616,7]
[385720469,1757989848938,-400.0,0.00035616,7]
[385720470,1757989848950,-512.48019612,0.00035616,7]
[385720471,1757989848959,-408.51581995,0.00035616,7]
[385720472,1757989848970,-400.0,0.00035616,7]
[385720473,1757989848982,-400.0,0.00035616,7]
[385720474,1757989848992,-418.4472867,0.00035616,7]
[385720475,1757989849005,-400.0,0.00035616,7]
[385720476,1757989849015,-400.0,0.00035616,7]
[385720477,1757989849025,-244.39445516,0.00035616,7]
[385720478,1757989849035,-400.0,0.00035616,7]
[385720479,1757989849045,-243.0275733,0.00035616,7]
[385720480,1757989849054,-400.0,0.00035616,7]
[385720481,1757989849064,-400.0,0.00035616,7]
[385720482,1757989849074,-400.0,0.00035616,7]
[385720483,1757989849084,-405.00613069,0.00035616,7]
[385720484,1757989849093,-404.50532371,0.00035616,7]
[385720485,1757989849103,-400.0,0.00035616,7]
[385720486,1757989849113,-400.0,0.00035616,7]
[385720487,1757989849122,-410.35161696,0.00035616,7]
[385720488,1757989849132,-401.05505654,0.00035616,7]
[385720489,1757989849141,-400.0,0.00035616,7]
[385720490,1757989849151,-400.0,0.00035616,7]
[385720491,1757989849160,-400.0,0.00035616,7]
[385720492,1757989849170,-400.0,0.00035616,7]
[385720493,1757989849179,-400.0,0.00035616,7]
[385720494,1757989849189,-400.0,0.00035616,7]
[385720495,1757989849199,-400.0,0.00035616,2]
[385720496,1757989849208,-310.29687986,0.00035616,2]
[385720497,1757989849218,-401.80684455,0.00035616,7]
[385720498,1757989849229,-400.0,0.00035616,7]
[385720499,1757989849239,-241.75244232,0.00035616,7]
[385720500,1757989849249,-237.40856004,0.00035616,7]
[385720501,1757989849259,-179.92371899,0.00035616,7]
[385720502,1757989849269,-400.0,0.00035616,7]
[385720503,1757989849279,-400.0,0.00035616,7]
[385720504,1757989849289,-400.0,0.00035616,7]
[385720505,1757989849299,-400.0,0.00035616,7]
[385720506,1757989849309,-269.50568021,0.00035616,7]
[385720507,1757989849319,-400.0,0.00035616,7]
[385720508,1757989849329,-400.0,0.00035616,7]
[385720509,1757989849340,-400.0,0.00035616,7]
[385720510,1757989849350,-400.0,0.00035616,7]
[385720511,1757989849359,-399.77605006,0.00035616,7]
[385720512,1757989849369,-400.0,0.00035616,7]
[385720513,1757989849379,-206.70799331,0.00035616,7]
[385720514,1757989849388,-405.34694067,0.00035616,7]
[385720515,1757989849398,-400.0,0.00035616,7]
[385720516,1757989849408,-400.0,0.00035616,7]